[Event "*** Titled Tuesday Blitz"]
[Site "Chess.com"]
[Date "2020.12.29"]
[Round "1"]
[White "vrekhson"]
[Black "MatyChess1"]
[Result "0-1"]
[WhiteElo "2197"]
[BlackElo "2529"]
[TimeControl "180+1"]
[EndTime "10:07:07 PST"]
[Termination "MatyChess1 won on time"]

1. e4 {[%clk 0:02:54.4]} 1... c5 {[%clk 0:02:59.1]} 2. Nf3 {[%clk 0:02:52.8]}
2... g6 {[%clk 0:02:57]} 3. c3 {[%clk 0:02:46.9]} 3... Nc6 {[%clk 0:02:43.5]} 4.
Bb5 {[%clk 0:02:44.3]} 4... Bg7 {[%clk 0:02:39.1]} 5. O-O {[%clk 0:02:44.1]}
5... Nf6 {[%clk 0:02:36.7]} 6. Re1 {[%clk 0:02:43.5]} 6... O-O {[%clk
0:02:36.3]} 7. d4 {[%clk 0:02:41.7]} 7... cxd4 {[%clk 0:02:33]} 8. cxd4 {[%clk
0:02:42.6]} 8... d5 {[%clk 0:02:32.9]} 9. e5 {[%clk 0:02:40.4]} 9... Ne4 {[%clk
0:02:32.9]} 10. Nc3 {[%clk 0:02:37.5]} 10... Bf5 {[%clk 0:02:31.5]} 11. Bd3
{[%clk 0:01:49.6]} 11... Rc8 {[%clk 0:02:06.9]} 12. a3 {[%clk 0:01:49]} 12...
Qd7 {[%clk 0:01:27.5]} 13. Nxe4 {[%clk 0:01:44.5]} 13... dxe4 {[%clk 0:01:27.3]}
14. Bxe4 {[%clk 0:01:45.4]} 14... Rfd8 {[%clk 0:01:25.2]} 15. Bxf5 {[%clk
0:01:44.3]} 15... Qxf5 {[%clk 0:01:25]} 16. Qb3 {[%clk 0:01:37.6]} 16... b6
{[%clk 0:00:53.8]} 17. Be3 {[%clk 0:01:29.4]} 17... Na5 {[%clk 0:00:53.8]} 18.
Qb5 {[%clk 0:01:22.3]} 18... Rc2 {[%clk 0:00:47.4]} 19. b4 {[%clk 0:01:13.7]}
19... Nc4 {[%clk 0:00:32.9]} 20. a4 {[%clk 0:00:58.2]} 20... Rc8 {[%clk
0:00:30.8]} 21. Qa6 {[%clk 0:00:52]} 21... Nxe3 {[%clk 0:00:27.6]} 22. fxe3
{[%clk 0:00:49.1]} 22... Bh6 {[%clk 0:00:25.6]} 23. Qf1 {[%clk 0:00:38]} 23...
Qe4 {[%clk 0:00:22.2]} 24. a5 {[%clk 0:00:29.6]} 24... b5 {[%clk 0:00:20.3]} 25.
h3 {[%clk 0:00:26.5]} 25... a6 {[%clk 0:00:20.3]} 26. Rad1 {[%clk 0:00:22.8]}
26... Rb2 {[%clk 0:00:20.2]} 27. d5 {[%clk 0:00:22.6]} 27... Rcc2 {[%clk
0:00:17.1]} 28. d6 {[%clk 0:00:15.1]} 28... exd6 {[%clk 0:00:15.4]} 29. exd6
{[%clk 0:00:15]} 29... Bxe3+ {[%clk 0:00:15.6]} 30. Kh1 {[%clk 0:00:14.3]} 30...
Rf2 {[%clk 0:00:15.9]} 31. Qd3 {[%clk 0:00:12.1]} 31... Qxf3 {[%clk 0:00:08.5]}
0-1

[Event "*** Titled Tuesday Blitz"]
[Site "Chess.com"]
[Date "2020.12.29"]
[Round "1"]
[White "BigAl"]
[Black "GigaQuparadze"]
[Result "0-1"]
[WhiteElo "2452"]
[BlackElo "2888"]
[TimeControl "180+1"]
[EndTime "10:07:08 PST"]
[Termination "GigaQuparadze won by resignation"]

1. e4 {[%clk 0:03:00]} 1... c5 {[%clk 0:02:59.5]} 2. Nc3 {[%clk 0:02:59.2]} 2...
e6 {[%clk 0:02:59.2]} 3. Nf3 {[%clk 0:02:57.8]} 3... a6 {[%clk 0:02:58.8]} 4. g3
{[%clk 0:02:57.9]} 4... b5 {[%clk 0:02:58.6]} 5. Bg2 {[%clk 0:02:58.6]} 5... Bb7
{[%clk 0:02:58.4]} 6. d3 {[%clk 0:02:59.3]} 6... d6 {[%clk 0:02:58.5]} 7. O-O
{[%clk 0:02:59.7]} 7... Be7 {[%clk 0:02:58.8]} 8. Re1 {[%clk 0:02:58.4]} 8...
Nf6 {[%clk 0:02:58.5]} 9. a4 {[%clk 0:02:56.4]} 9... b4 {[%clk 0:02:58]} 10. Nb1
{[%clk 0:02:56.9]} 10... O-O {[%clk 0:02:57.3]} 11. e5 {[%clk 0:02:57]} 11...
dxe5 {[%clk 0:02:58.2]} 12. Nxe5 {[%clk 0:02:57.3]} 12... Bxg2 {[%clk
0:02:58.1]} 13. Kxg2 {[%clk 0:02:58.2]} 13... Ra7 {[%clk 0:02:53.5]} 14. Nd2
{[%clk 0:02:53.7]} 14... Nfd7 {[%clk 0:02:51.5]} 15. Nec4 {[%clk 0:02:48.8]}
15... Nc6 {[%clk 0:02:50.8]} 16. a5 {[%clk 0:02:41]} 16... Qa8 {[%clk
0:02:48.4]} 17. Kg1 {[%clk 0:02:37.1]} 17... Nd4 {[%clk 0:02:46.9]} 18. c3
{[%clk 0:02:36]} 18... Nb5 {[%clk 0:02:46.6]} 19. Qc2 {[%clk 0:02:33]} 19... Rd8
{[%clk 0:02:46.3]} 20. Ne4 {[%clk 0:02:28.1]} 20... Nf6 {[%clk 0:02:46]} 21. Be3
{[%clk 0:02:14.3]} 21... bxc3 {[%clk 0:02:40]} 22. bxc3 {[%clk 0:02:10.3]} 22...
Qd5 {[%clk 0:02:38.8]} 23. Nb6 {[%clk 0:02:03.6]} 23... Qxd3 {[%clk 0:02:35.3]}
24. Qxd3 {[%clk 0:02:01]} 24... Rxd3 {[%clk 0:02:36.2]} 25. Nxc5 {[%clk
0:01:58.4]} 25... Rxe3 {[%clk 0:02:34.9]} 26. Rxe3 {[%clk 0:01:51.7]} 26... Bxc5
{[%clk 0:02:34.2]} 27. Rd3 {[%clk 0:01:52.1]} 27... g6 {[%clk 0:02:30.5]} 28. c4
{[%clk 0:01:42.5]} 28... Nd4 {[%clk 0:02:30]} 29. Na4 {[%clk 0:01:38.8]} 29...
Nc2 {[%clk 0:01:57.9]} 30. Rc1 {[%clk 0:01:38.1]} 30... Nb4 {[%clk 0:01:57.1]}
31. Rd8+ {[%clk 0:01:37.2]} 31... Bf8 {[%clk 0:01:56.9]} 32. Rb1 {[%clk
0:01:25.9]} 32... Nc6 {[%clk 0:01:52]} 33. Rc8 {[%clk 0:01:26.2]} 33... Ne7
{[%clk 0:01:51.9]} 34. Rd8 {[%clk 0:01:20]} 34... h6 {[%clk 0:01:51.9]} 35. Rbb8
{[%clk 0:01:19.6]} 35... Nh7 {[%clk 0:01:52]} 36. Nc5 {[%clk 0:01:15.4]} 36...
Nc6 {[%clk 0:01:50.2]} 37. Ra8 {[%clk 0:00:57.8]} 37... Nxd8 {[%clk 0:01:49.9]}
38. Rxa7 {[%clk 0:00:57.1]} 38... Bxc5 {[%clk 0:01:50.2]} 39. Rxa6 {[%clk
0:00:56.8]} 39... Kf8 {[%clk 0:01:40.4]} 40. Ra8 {[%clk 0:00:55.4]} 40... Ke7
{[%clk 0:01:40.7]} 41. a6 {[%clk 0:00:55.9]} 41... Nc6 {[%clk 0:01:40.6]} 42.
Rc8 {[%clk 0:00:52.5]} 42... Kd7 {[%clk 0:01:40.6]} 43. Rh8 {[%clk 0:00:52.1]}
43... Nf8 {[%clk 0:01:35.7]} 44. Rxh6 {[%clk 0:00:48.8]} 44... Nb8 {[%clk
0:01:35.4]} 45. g4 {[%clk 0:00:46.1]} 45... Nxa6 {[%clk 0:01:35.2]} 46. h4
{[%clk 0:00:47]} 46... Nb4 {[%clk 0:01:33.6]} 47. h5 {[%clk 0:00:47.2]} 47...
Nd3 {[%clk 0:01:33.6]} 48. Rh8 {[%clk 0:00:47]} 48... Ke7 {[%clk 0:01:33.9]} 49.
h6 {[%clk 0:00:47.1]} 49... Bxf2+ {[%clk 0:01:33.8]} 50. Kg2 {[%clk 0:00:47.1]}
50... Bd4 {[%clk 0:01:34]} 51. Rg8 {[%clk 0:00:47.4]} 51... Nh7 {[%clk 0:01:32]}
52. Kf3 {[%clk 0:00:41.8]} 52... Ng5+ {[%clk 0:01:30.4]} 53. Ke2 {[%clk
0:00:41.6]} 53... Ne5 {[%clk 0:01:27.4]} 54. Rb8 {[%clk 0:00:32]} 54... Nxg4
{[%clk 0:01:26.4]} 55. Kd3 {[%clk 0:00:31.7]} 55... Be5 {[%clk 0:01:25]} 56.
Rb7+ {[%clk 0:00:31.2]} 56... Kf6 {[%clk 0:01:25.3]} 57. c5 {[%clk 0:00:28.8]}
57... Nxh6 {[%clk 0:01:25.3]} 58. c6 {[%clk 0:00:29.5]} 58... Nf5 {[%clk
0:01:25.5]} 59. Rb1 {[%clk 0:00:28.8]} 59... Ne7 {[%clk 0:01:24.4]} 60. Rf1+
{[%clk 0:00:27.2]} 60... Kg7 {[%clk 0:01:23.4]} 61. Rc1 {[%clk 0:00:27.5]} 61...
Bc7 {[%clk 0:01:23.1]} 0-1

[Event "*** Titled Tuesday Blitz"]
[Site "Chess.com"]
[Date "2020.12.29"]
[Round "1"]
[White "ZiggyStardust64"]
[Black "Deepweb2020"]
[Result "1-0"]
[WhiteElo "2688"]
[BlackElo "2359"]
[TimeControl "180+1"]
[EndTime "10:07:08 PST"]
[Termination "ZiggyStardust64 won on time"]

1. e4 {[%clk 0:03:00.9]} 1... e5 {[%clk 0:02:56.5]} 2. Nf3 {[%clk 0:03:00.9]}
2... Nc6 {[%clk 0:02:55.5]} 3. Bb5 {[%clk 0:03:01]} 3... a6 {[%clk 0:02:54.9]}
4. Ba4 {[%clk 0:03:01.2]} 4... Nf6 {[%clk 0:02:53.2]} 5. O-O {[%clk 0:03:01.4]}
5... b5 {[%clk 0:02:53.4]} 6. Bb3 {[%clk 0:03:01.4]} 6... Bc5 {[%clk 0:02:54.3]}
7. Re1 {[%clk 0:02:47.6]} 7... d6 {[%clk 0:02:40.5]} 8. c3 {[%clk 0:02:47.1]}
8... O-O {[%clk 0:02:28.1]} 9. d4 {[%clk 0:02:47.1]} 9... Bb6 {[%clk 0:02:27.9]}
10. Bg5 {[%clk 0:02:34]} 10... Bg4 {[%clk 0:01:47.5]} 11. d5 {[%clk 0:02:05]}
11... Ne7 {[%clk 0:01:28.6]} 12. Nbd2 {[%clk 0:01:52.5]} 12... Ng6 {[%clk
0:01:22.2]} 13. h3 {[%clk 0:01:48.9]} 13... Ne7 {[%clk 0:01:23.1]} 14. hxg4
{[%clk 0:01:48.3]} 14... Nxg4 {[%clk 0:01:10.1]} 15. Bh4 {[%clk 0:01:40.4]}
15... Qd7 {[%clk 0:01:04.7]} 16. Nf1 {[%clk 0:01:31.5]} 16... Ng6 {[%clk
0:01:02.3]} 17. Bg3 {[%clk 0:01:30.9]} 17... f5 {[%clk 0:01:01.8]} 18. exf5
{[%clk 0:01:30.8]} 18... Qxf5 {[%clk 0:00:39.6]} 19. Bc2 {[%clk 0:01:29]} 19...
Qh5 {[%clk 0:00:34]} 20. Bxg6 {[%clk 0:01:16.4]} 20... Qxg6 {[%clk 0:00:28.4]}
21. Qb1 {[%clk 0:01:08]} 21... Qh5 {[%clk 0:00:17.7]} 22. N1h2 {[%clk
0:01:04.6]} 22... Nxh2 {[%clk 0:00:13]} 23. Bxh2 {[%clk 0:01:02]} 23... Rxf3
{[%clk 0:00:09.5]} 24. gxf3 {[%clk 0:00:43.2]} 24... Rf8 {[%clk 0:00:07.5]} 25.
f4 {[%clk 0:00:28.6]} 25... Rf6 {[%clk 0:00:03.3]} 26. Bg3 {[%clk 0:00:15.1]}
26... Qf3 {[%clk 0:00:02.7]} 27. Qe4 {[%clk 0:00:09.3]} 27... Qxg3+ {[%clk
0:00:02.2]} 28. Qg2 {[%clk 0:00:10.2]} 28... Bxf2+ {[%clk 0:00:01.5]} 29. Kf1
{[%clk 0:00:09.6]} 1-0

[Event "*** Titled Tuesday Blitz"]
[Site "Chess.com"]
[Date "2020.12.29"]
[Round "1"]
[White "Walter_White_Poland"]
[Black "Ermito2020"]
[Result "0-1"]
[WhiteElo "2321"]
[BlackElo "2628"]
[TimeControl "180+1"]
[EndTime "10:07:09 PST"]
[Termination "Ermito2020 won by resignation"]

1. e4 {[%clk 0:02:55.7]} 1... c6 {[%clk 0:02:59.4]} 2. d4 {[%clk 0:02:54.9]}
2... d5 {[%clk 0:03:00.3]} 3. Nc3 {[%clk 0:02:54.9]} 3... dxe4 {[%clk 0:03:00]}
4. Nxe4 {[%clk 0:02:55]} 4... Bf5 {[%clk 0:03:00.3]} 5. Ng3 {[%clk 0:02:54.6]}
5... Bg6 {[%clk 0:03:00]} 6. h4 {[%clk 0:02:54.5]} 6... h6 {[%clk 0:03:00]} 7.
Nf3 {[%clk 0:02:53.6]} 7... Nd7 {[%clk 0:02:59.7]} 8. h5 {[%clk 0:02:54]} 8...
Bh7 {[%clk 0:02:59.8]} 9. Bd3 {[%clk 0:02:54.6]} 9... Bxd3 {[%clk 0:03:00.2]}
10. Qxd3 {[%clk 0:02:55.5]} 10... e6 {[%clk 0:03:00.9]} 11. Bd2 {[%clk
0:02:55.3]} 11... Ngf6 {[%clk 0:03:00.7]} 12. O-O-O {[%clk 0:02:55.1]} 12... Be7
{[%clk 0:03:01.2]} 13. Ne4 {[%clk 0:02:54.7]} 13... Nxe4 {[%clk 0:03:01]} 14.
Qxe4 {[%clk 0:02:54.9]} 14... Nf6 {[%clk 0:03:01.9]} 15. Qd3 {[%clk 0:02:55]}
15... Qd5 {[%clk 0:03:01.9]} 16. Kb1 {[%clk 0:02:53.4]} 16... Qe4 {[%clk
0:03:00.8]} 17. Qxe4 {[%clk 0:02:53.3]} 17... Nxe4 {[%clk 0:03:00.5]} 18. Be1
{[%clk 0:02:53.4]} 18... Rd8 {[%clk 0:02:50.1]} 19. Ne5 {[%clk 0:02:48.5]} 19...
Bf6 {[%clk 0:02:42.6]} 20. Nf3 {[%clk 0:01:36.1]} 20... c5 {[%clk 0:02:42.2]}
21. c3 {[%clk 0:01:17.5]} 21... cxd4 {[%clk 0:02:30.1]} 22. cxd4 {[%clk
0:01:14.8]} 22... Rd5 {[%clk 0:02:29.7]} 23. Kc2 {[%clk 0:00:50.8]} 23... Kd7
{[%clk 0:02:27.5]} 24. Kd3 {[%clk 0:00:48.6]} 24... Nc5+ {[%clk 0:02:22.5]} 25.
Ke2 {[%clk 0:00:48]} 25... Na4 {[%clk 0:02:17.4]} 26. b3 {[%clk 0:00:42.2]}
26... Nb6 {[%clk 0:02:16.7]} 27. Ne5+ {[%clk 0:00:34.4]} 27... Bxe5 {[%clk
0:02:16.4]} 28. dxe5 {[%clk 0:00:34.6]} 28... Rc8 {[%clk 0:02:17.3]} 29. Rxd5+
{[%clk 0:00:25.2]} 29... Nxd5 {[%clk 0:02:18.2]} 30. Bd2 {[%clk 0:00:19.9]}
30... Rc2 {[%clk 0:02:16.5]} 31. Ra1 {[%clk 0:00:18.5]} 31... b5 {[%clk
0:01:54]} 32. Kd3 {[%clk 0:00:17.6]} 32... Rc6 {[%clk 0:01:52.7]} 33. Rc1 {[%clk
0:00:14.3]} 33... Nb4+ {[%clk 0:01:50.3]} 34. Ke4 {[%clk 0:00:07.4]} 34... Rxc1
{[%clk 0:01:47.3]} 35. Bxc1 {[%clk 0:00:08.3]} 35... Nxa2 {[%clk 0:01:46.9]} 36.
Bd2 {[%clk 0:00:08.7]} 36... b4 {[%clk 0:01:43.2]} 37. Kd4 {[%clk 0:00:08.5]}
37... Kc6 {[%clk 0:01:39.1]} 38. Kc4 {[%clk 0:00:07.2]} 38... a5 {[%clk
0:01:38.8]} 39. g4 {[%clk 0:00:06.7]} 39... Nc3 {[%clk 0:01:35.7]} 40. f4 {[%clk
0:00:03.9]} 40... Ne4 {[%clk 0:01:24.4]} 41. Be3 {[%clk 0:00:02.8]} 41... Ng3
{[%clk 0:01:24.1]} 42. g5 {[%clk 0:00:02.7]} 42... Nxh5 {[%clk 0:01:22.9]} 43.
gxh6 {[%clk 0:00:02.6]} 43... gxh6 {[%clk 0:01:22.9]} 44. f5 {[%clk 0:00:03.1]}
44... exf5 {[%clk 0:01:21.5]} 45. Bxh6 {[%clk 0:00:04]} 45... f4 {[%clk
0:01:20]} 46. Kd4 {[%clk 0:00:03.4]} 46... f3 {[%clk 0:01:12]} 47. Ke3 {[%clk
0:00:03.1]} 47... a4 {[%clk 0:01:07.8]} 48. bxa4 {[%clk 0:00:02.7]} 48... b3
{[%clk 0:01:05.9]} 49. Kxf3 {[%clk 0:00:01.7]} 49... b2 {[%clk 0:01:05.3]} 0-1

[Event "*** Titled Tuesday Blitz"]
[Site "Chess.com"]
[Date "2020.12.29"]
[Round "1"]
[White "emperor87"]
[Black "NMShanMeruga"]
[Result "0-1"]
[WhiteElo "2710"]
[BlackElo "2404"]
[TimeControl "180+1"]
[EndTime "10:07:11 PST"]
[Termination "NMShanMeruga won on time"]

1. e4 {[%clk 0:02:59.5]} 1... e5 {[%clk 0:02:58.8]} 2. Nf3 {[%clk 0:02:47.7]}
2... Nc6 {[%clk 0:02:59.1]} 3. Bb5 {[%clk 0:02:46.6]} 3... Nf6 {[%clk
0:02:58.9]} 4. d3 {[%clk 0:02:45.9]} 4... Bc5 {[%clk 0:02:55.4]} 5. O-O {[%clk
0:02:44.8]} 5... Nd4 {[%clk 0:02:52.7]} 6. Nxd4 {[%clk 0:02:43.5]} 6... Bxd4
{[%clk 0:02:52.8]} 7. c3 {[%clk 0:02:42.9]} 7... Bb6 {[%clk 0:02:49.8]} 8. d4
{[%clk 0:02:42.3]} 8... O-O {[%clk 0:02:47.5]} 9. Bg5 {[%clk 0:02:33]} 9... d6
{[%clk 0:02:45.1]} 10. Na3 {[%clk 0:02:24.7]} 10... a6 {[%clk 0:02:37.9]} 11.
Ba4 {[%clk 0:02:20.7]} 11... h6 {[%clk 0:02:35.1]} 12. Bxf6 {[%clk 0:02:19.1]}
12... Qxf6 {[%clk 0:02:34.6]} 13. Nc2 {[%clk 0:02:13.7]} 13... Qg6 {[%clk
0:02:31.6]} 14. Qd3 {[%clk 0:02:11.2]} 14... Be6 {[%clk 0:02:24.6]} 15. Bb3
{[%clk 0:02:08.1]} 15... Bxb3 {[%clk 0:02:20.8]} 16. axb3 {[%clk 0:02:07.2]}
16... Kh8 {[%clk 0:02:18.6]} 17. Rad1 {[%clk 0:02:00]} 17... Rae8 {[%clk
0:02:12.8]} 18. f3 {[%clk 0:01:48.4]} 18... f5 {[%clk 0:02:07.9]} 19. exf5
{[%clk 0:01:47.4]} 19... Qxf5 {[%clk 0:02:05.4]} 20. Qxf5 {[%clk 0:01:46.6]}
20... Rxf5 {[%clk 0:02:06.3]} 21. Rfe1 {[%clk 0:01:46.3]} 21... Rff8 {[%clk
0:02:03.1]} 22. Kh1 {[%clk 0:01:43.2]} 22... exd4 {[%clk 0:02:00]} 23. cxd4
{[%clk 0:01:40.7]} 23... c6 {[%clk 0:01:55.7]} 24. Kg1 {[%clk 0:01:39.9]} 24...
d5 {[%clk 0:01:52]} 25. Kf2 {[%clk 0:01:39.5]} 25... Kg8 {[%clk 0:01:49.6]} 26.
h4 {[%clk 0:01:37.4]} 26... Kf7 {[%clk 0:01:46.8]} 27. h5 {[%clk 0:01:36.1]}
27... g6 {[%clk 0:01:44.7]} 28. hxg6+ {[%clk 0:01:35]} 28... Kxg6 {[%clk
0:01:45.6]} 29. Rxe8 {[%clk 0:01:32.3]} 29... Rxe8 {[%clk 0:01:44.7]} 30. b4
{[%clk 0:01:31.9]} 30... h5 {[%clk 0:01:41.8]} 31. Rh1 {[%clk 0:01:30.4]} 31...
Bc7 {[%clk 0:01:37.5]} 32. Re1 {[%clk 0:01:26.2]} 32... Rxe1 {[%clk 0:01:34.3]}
33. Nxe1 {[%clk 0:01:25.3]} 33... Bd6 {[%clk 0:01:32.3]} 34. Nd3 {[%clk
0:01:24.4]} 34... Kg5 {[%clk 0:01:30.1]} 35. Nc5 {[%clk 0:01:19.2]} 35... b6
{[%clk 0:01:22.6]} 36. Nxa6 {[%clk 0:01:17.3]} 36... Kh4 {[%clk 0:01:19]} 37.
Kf1 {[%clk 0:01:10.1]} 37... Kg3 {[%clk 0:01:17.3]} 38. Kg1 {[%clk 0:01:09.8]}
38... h4 {[%clk 0:01:15.6]} 39. Kf1 {[%clk 0:01:09.4]} 39... h3 {[%clk
0:01:13.7]} 40. gxh3 {[%clk 0:01:09.1]} 40... Kxf3 {[%clk 0:01:13.3]} 41. Ke1
{[%clk 0:01:08.9]} 41... Ke3 {[%clk 0:01:11.2]} 42. h4 {[%clk 0:01:01.2]} 42...
Kxd4 {[%clk 0:01:09.8]} 43. Kd2 {[%clk 0:01:00.4]} 43... Kc4 {[%clk 0:01:07.9]}
44. h5 {[%clk 0:00:59.9]} 44... Kb5 {[%clk 0:01:06]} 45. h6 {[%clk 0:00:54.5]}
45... Be5 {[%clk 0:00:57.4]} 0-1

[Event "*** Titled Tuesday Blitz"]
[Site "Chess.com"]
[Date "2020.12.29"]
[Round "1"]
[White "SCIM"]
[Black "Beca95"]
[Result "0-1"]
[WhiteElo "2438"]
[BlackElo "2839"]
[TimeControl "180+1"]
[EndTime "10:07:15 PST"]
[Termination "Beca95 won by resignation"]

1. d4 {[%clk 0:02:51]} 1... Nf6 {[%clk 0:02:57.6]} 2. c4 {[%clk 0:02:48.2]} 2...
c5 {[%clk 0:02:56.6]} 3. d5 {[%clk 0:02:45.9]} 3... e6 {[%clk 0:02:56]} 4. Nc3
{[%clk 0:02:45]} 4... exd5 {[%clk 0:02:54.9]} 5. cxd5 {[%clk 0:02:45.9]} 5... d6
{[%clk 0:02:54.2]} 6. Nf3 {[%clk 0:02:46.3]} 6... g6 {[%clk 0:02:52.8]} 7. Nd2
{[%clk 0:02:45.9]} 7... Bg7 {[%clk 0:02:51.4]} 8. e4 {[%clk 0:02:45.9]} 8... O-O
{[%clk 0:02:50.5]} 9. Be2 {[%clk 0:02:44.5]} 9... Re8 {[%clk 0:02:50]} 10. O-O
{[%clk 0:02:41.6]} 10... Nbd7 {[%clk 0:02:50.2]} 11. a4 {[%clk 0:02:33.3]} 11...
a6 {[%clk 0:02:47]} 12. f3 {[%clk 0:02:17.2]} 12... Ne5 {[%clk 0:02:42.7]} 13.
Nc4 {[%clk 0:02:11.7]} 13... Nxc4 {[%clk 0:02:40.6]} 14. Bxc4 {[%clk 0:02:12.6]}
14... Nh5 {[%clk 0:02:40.9]} 15. Be3 {[%clk 0:02:07.1]} 15... f5 {[%clk
0:02:39.5]} 16. Qd2 {[%clk 0:02:04.7]} 16... Bd7 {[%clk 0:02:38.3]} 17. Rae1
{[%clk 0:01:54.7]} 17... Rb8 {[%clk 0:02:33.9]} 18. Bg5 {[%clk 0:01:48]} 18...
Bf6 {[%clk 0:02:29.8]} 19. Bxf6 {[%clk 0:01:44.1]} 19... Qxf6 {[%clk 0:02:30.1]}
20. exf5 {[%clk 0:01:44.5]} 20... gxf5 {[%clk 0:02:29.9]} 21. Kh1 {[%clk
0:01:18.2]} 21... b5 {[%clk 0:02:26]} 22. axb5 {[%clk 0:01:10.7]} 22... axb5
{[%clk 0:02:26.9]} 23. Rxe8+ {[%clk 0:01:09.8]} 23... Bxe8 {[%clk 0:02:26.9]}
24. Be2 {[%clk 0:01:00.2]} 24... Qh4 {[%clk 0:02:08.5]} 25. Kg1 {[%clk
0:00:56.5]} 25... Qd4+ {[%clk 0:01:19.1]} 26. Qxd4 {[%clk 0:00:54.3]} 26... cxd4
{[%clk 0:01:20]} 27. Nd1 {[%clk 0:00:40.6]} 27... Nf4 {[%clk 0:01:19.9]} 28. Re1
{[%clk 0:00:39.5]} 28... Bf7 {[%clk 0:01:05.6]} 29. g3 {[%clk 0:00:28.6]} 29...
Nxd5 {[%clk 0:01:00.9]} 30. Bd3 {[%clk 0:00:26.6]} 30... f4 {[%clk 0:01:01.1]}
31. Nf2 {[%clk 0:00:22.7]} 31... Ne3 {[%clk 0:00:49.7]} 32. Ne4 {[%clk
0:00:18.4]} 32... Bc4 {[%clk 0:00:48.7]} 33. Bb1 {[%clk 0:00:13.1]} 33... d5
{[%clk 0:00:41.7]} 34. Nf6+ {[%clk 0:00:07]} 34... Kg7 {[%clk 0:00:41.2]} 35.
Nh5+ {[%clk 0:00:06.3]} 35... Kh6 {[%clk 0:00:39.7]} 36. Nxf4 {[%clk 0:00:07.2]}
36... Ra8 {[%clk 0:00:34.4]} 37. Nd3 {[%clk 0:00:08.1]} 37... Ra1 {[%clk
0:00:31.3]} 38. Ne5 {[%clk 0:00:09]} 38... d3 {[%clk 0:00:29.8]} 39. Kf2 {[%clk
0:00:09.9]} 39... d2 {[%clk 0:00:29.7]} 40. Rxe3 {[%clk 0:00:02.9]} 40... d1=Q
{[%clk 0:00:26.9]} 0-1

[Event "*** Titled Tuesday Blitz"]
[Site "Chess.com"]
[Date "2020.12.29"]
[Round "1"]
[White "GM4life"]
[Black "LiamVrolijk"]
[Result "0-1"]
[WhiteElo "2420"]
[BlackElo "2813"]
[TimeControl "180+1"]
[EndTime "10:07:15 PST"]
[Termination "LiamVrolijk won by resignation"]

1. e4 {[%clk 0:03:00.9]} 1... g6 {[%clk 0:02:59.5]} 2. d4 {[%clk 0:03:00.9]}
2... Bg7 {[%clk 0:02:59.7]} 3. Nc3 {[%clk 0:03:01.6]} 3... d6 {[%clk 0:03:00]}
4. f4 {[%clk 0:03:02]} 4... Nf6 {[%clk 0:02:59.6]} 5. Nf3 {[%clk 0:03:02.4]}
5... Na6 {[%clk 0:02:59.3]} 6. Bd3 {[%clk 0:03:02]} 6... c5 {[%clk 0:02:59.5]}
7. d5 {[%clk 0:03:00.8]} 7... O-O {[%clk 0:02:57.5]} 8. O-O {[%clk 0:03:01.3]}
8... Bg4 {[%clk 0:02:57.5]} 9. a3 {[%clk 0:03:00.7]} 9... Nc7 {[%clk 0:02:55.9]}
10. h3 {[%clk 0:03:01.2]} 10... Bxf3 {[%clk 0:02:56.1]} 11. Qxf3 {[%clk
0:03:02]} 11... e6 {[%clk 0:02:55.8]} 12. Be3 {[%clk 0:02:56]} 12... exd5 {[%clk
0:02:55.6]} 13. exd5 {[%clk 0:02:56.4]} 13... Re8 {[%clk 0:02:55.9]} 14. Rfe1
{[%clk 0:02:56]} 14... Qd7 {[%clk 0:02:55.4]} 15. a4 {[%clk 0:02:50.3]} 15...
Re7 {[%clk 0:02:54.8]} 16. Bf2 {[%clk 0:02:45.4]} 16... Rae8 {[%clk 0:02:51]}
17. g4 {[%clk 0:02:45.4]} 17... Rxe1+ {[%clk 0:02:44.1]} 18. Rxe1 {[%clk
0:02:45.8]} 18... Rxe1+ {[%clk 0:02:44.6]} 19. Bxe1 {[%clk 0:02:46.7]} 19... Kf8
{[%clk 0:02:39.8]} 20. Bf2 {[%clk 0:02:45.9]} 20... a6 {[%clk 0:02:38.5]} 21. a5
{[%clk 0:02:44.5]} 21... Ng8 {[%clk 0:02:38.6]} 22. f5 {[%clk 0:02:41.4]} 22...
Qe7 {[%clk 0:02:36.2]} 23. fxg6 {[%clk 0:02:36.7]} 23... hxg6 {[%clk 0:02:37.1]}
24. Bxg6 {[%clk 0:02:35.4]} 24... Bd4 {[%clk 0:02:37]} 25. Bd3 {[%clk
0:02:04.7]} 25... Nf6 {[%clk 0:02:36.7]} 26. Kg2 {[%clk 0:01:58.3]} 26... Bxf2
{[%clk 0:02:35.6]} 27. Kxf2 {[%clk 0:01:58.3]} 27... Qe5 {[%clk 0:02:36.2]} 28.
Be4 {[%clk 0:01:41]} 28... Nb5 {[%clk 0:02:36.1]} 29. Bf5 {[%clk 0:01:15.8]}
29... Nd4 {[%clk 0:02:25]} 30. Qg3 {[%clk 0:01:09.5]} 30... Qe7 {[%clk
0:02:19.6]} 31. Qe3 {[%clk 0:01:09.1]} 31... Qc7 {[%clk 0:02:13.5]} 32. Qg5
{[%clk 0:01:05.7]} 32... Qe7 {[%clk 0:02:08.9]} 33. Qh6+ {[%clk 0:01:04.8]}
33... Kg8 {[%clk 0:02:06.7]} 34. Qg5+ {[%clk 0:00:44.6]} 34... Kf8 {[%clk
0:02:07]} 35. Bd3 {[%clk 0:00:43.3]} 35... Qd8 {[%clk 0:01:55.4]} 36. Qh6+
{[%clk 0:00:42.1]} 36... Ke7 {[%clk 0:01:54]} 37. g5 {[%clk 0:00:41.5]} 37...
Nd7 {[%clk 0:01:50.3]} 38. Qh4 {[%clk 0:00:41.3]} 38... Qf8 {[%clk 0:01:37.1]}
39. g6+ {[%clk 0:00:41]} 39... Ke8 {[%clk 0:01:37.6]} 40. Qe4+ {[%clk
0:00:35.1]} 40... Ne5 {[%clk 0:01:37.7]} 41. gxf7+ {[%clk 0:00:25.7]} 41...
Qxf7+ {[%clk 0:01:38.6]} 42. Ke1 {[%clk 0:00:20.4]} 42... Kd8 {[%clk 0:01:35.8]}
43. Ne2 {[%clk 0:00:19.8]} 43... Ndf3+ {[%clk 0:01:31.2]} 44. Kd1 {[%clk
0:00:19.3]} 44... Qg7 {[%clk 0:01:28.4]} 45. Qf5 {[%clk 0:00:17]} 45... Qh6
{[%clk 0:01:26.8]} 46. Qf4 {[%clk 0:00:14.1]} 46... Qxh3 {[%clk 0:01:25.7]} 47.
Qf6+ {[%clk 0:00:12.3]} 47... Kc7 {[%clk 0:01:26]} 48. Qe7+ {[%clk 0:00:12.2]}
48... Nd7 {[%clk 0:01:26.2]} 49. Nf4 {[%clk 0:00:11]} 49... Qh1+ {[%clk
0:01:22]} 50. Ke2 {[%clk 0:00:09.9]} 50... Qe1+ {[%clk 0:01:22.3]} 51. Kxf3
{[%clk 0:00:10.5]} 51... Qxe7 {[%clk 0:01:23]} 52. Ne6+ {[%clk 0:00:11.4]} 52...
Kb8 {[%clk 0:01:23.5]} 53. Bf5 {[%clk 0:00:11.9]} 53... Qf6 {[%clk 0:01:23.7]}
54. Kf4 {[%clk 0:00:12.2]} 54... Qe5+ {[%clk 0:01:23.6]} 55. Kg5 {[%clk
0:00:13.1]} 55... Nf6 {[%clk 0:01:24]} 56. Nf8 {[%clk 0:00:11.7]} 56... Ne4+
{[%clk 0:01:22.4]} 57. Kg4 {[%clk 0:00:11]} 57... Qg7+ {[%clk 0:01:22.6]} 58.
Kf4 {[%clk 0:00:11.1]} 58... Qxf8 {[%clk 0:01:23.1]} 59. Kxe4 {[%clk 0:00:11.8]}
59... Qe7+ {[%clk 0:01:23.4]} 60. Kf4 {[%clk 0:00:12.7]} 60... Qe5+ {[%clk
0:01:23.6]} 61. Kg5 {[%clk 0:00:13.6]} 61... Qxd5 {[%clk 0:01:24.1]} 62. b3
{[%clk 0:00:14.5]} 62... Qe5 {[%clk 0:01:24.4]} 63. c3 {[%clk 0:00:15.4]} 63...
Qxc3 {[%clk 0:01:24.3]} 64. Kf4 {[%clk 0:00:15.7]} 64... Qe5+ {[%clk 0:01:24.6]}
65. Kg5 {[%clk 0:00:16.6]} 65... d5 {[%clk 0:01:25.2]} 0-1